Cogmind - Beta 17 @@@ ROGUE MODE // 2026.07.28 @ 22:08:51 Player: Elias Result: Destroyed by Optimus with Helical Railgun Performance ------------- Evolutions (0) 0 Regions Visited (4) 800 Robots Destroyed (8) 40 Value Destroyed (193) 193 Prototype IDs (12) 240 Alien Tech Used (0) 0 Bonus (800) 800 TOTAL SCORE: 2073 Bonus ------- Registered with UFD 300 Met Optimus in HQ 500 Cogmind --------- Core Integrity 0/250 Matter 265/300 Energy 100/100 System Corruption 0% Temperature Cool (0) Movement Walking (210) Ox1 Location -8/Scraptown Parts ------- > --- POWER (1) -------- Subdweller Power Source > --- PROPULSION (2) --- Makeshift Leg > --- UTILITY (2) ------ Large Storage Unit Signal Interpreter > --- WEAPON (2) ------- Medium Laser > --- INVENTORY (15) --- Carbon-fiber Leg Carbon-fiber Leg Carbon-fiber Leg Overtuned Flexi-carbon Leg Scrap Suit IFF Parser Makeshift Terrain Scanner 0b10 Decoder Chip [Scout] Jamming Amplifier Flak Gun Flak Cannon CPS Tube (2) Power Maul Botcube Peak State ------------ > --- POWER ------------ Subdweller Power Source > --- PROPULSION ------- Makeshift Leg Overtuned Flexi-carbon Leg > --- UTILITY ---------- Large Storage Unit Signal Interpreter > --- WEAPON ----------- Medium Laser Flak Gun > --- INVENTORY -------- Light Treads Light Treads Carbon-fiber Leg Carbon-fiber Leg Carbon-fiber Leg Carbon-fiber Leg IFF Parser Makeshift Terrain Scanner Jamming Amplifier Backup Plating I Scrap Shield Flak Cannon Power Maul Botcube [Rating: 24] Favorites ----------- Power Subdweller Power Source Engine Subdweller Power Source Propulsion Makeshift Leg Leg Makeshift Leg Wheel Subdweller Monowheel Utility Signal Interpreter Storage Medium Storage Unit Processor Signal Interpreter Protection Backup Plating I Weapon Medium Laser Energy Gun Medium Laser Ballistic Gun Flak Gun Special Weapon CPS Tube Slashing Weapon Mining Claw Build | -11 -10 -10 -10 -8 ------- Run | Yrd Mat Min Sub Scr Slots Evolved . | . . . . . Power . | . . . . . Propulsion . | . . . . . Utility . | . . . . . Weapon . | . . . . . Parts Attached 21 | 5 4 . 6 6 Power 2 | 1 . . 1 . Engine 2 | 1 . . 1 . Core . | . . . . . Reactor . | . . . . . Propulsion 7 | 2 . . 2 3 Treads . | . . . . . Leg 6 | 2 . . 1 3 Wheel 1 | . . . 1 . Hover . | . . . . . Flight . | . . . . . Utility 4 | . 3 . . 1 Device . | . . . . . Storage 3 | . 2 . . 1 Processor 1 | . 1 . . . Hackware . | . . . . . Protection . | . . . . . Artifact . | . . . . . Weapon 8 | 2 1 . 3 2 Energy Gun 3 | 1 1 . 1 . Energy Cannon . | . . . . . Ballistic Gun 3 | 1 . . 1 1 Ballistic Cannon . | . . . . . Launcher . | . . . . . Special Weapon 1 | . . . . 1 Impact Weapon . | . . . . . Slashing Weapon 1 | . . . 1 . Piercing Weapon . | . . . . . Special Melee Weapon . | . . . . . Unidentified Prototypes . | . . . . . Parts Lost 3 | . . . 2 1 Power 1 | . . . 1 . Propulsion 2 | . . . 1 1 Utility . | . . . . . Weapon . | . . . . . Highest Loss Streak 2 | . . . 2 1 To Critical Strikes . | . . . . . Average Backups 10 | 3 7 9 9 12 Power . | . . . . . Propulsion 4 | 1 3 4 3 5 Utility 3 | . 1 3 2 4 Weapon 2 | 1 1 2 2 2 Tool/Special . | . . . . . Unused Backups 18 | . . . 4 14 Power . | . . . . . Propulsion 7 | . . . 1 6 Utility 7 | . . . 2 5 Weapon 3 | . . . 1 2 Tool/Special 1 | . . . . 1 Average Slot Usage (%) 98 | . 96 100 93 100 Engine 12 | . 14 14 8 14 Leg 23 | . 28 28 21 23 Wheel 4 | . . . 6 4 Storage 14 | . 14 14 14 14 Processor 13 | . 9 14 14 14 Energy Gun 16 | . 17 28 22 14 Ballistic Gun 10 | . 10 . 3 13 Peak Build Rating 24 | 5 7 8 15 24 Average Rating 15 | 3 6 7 8 19 On Entrance 7 | . 5 7 8 15 Avg Prop Armor Cover (%) 7 | . . . 10 6 Naked Turns . | . . . . . Heaviest Build 31 | 7 17 17 21 31 Greatest Support 43 | 20 20 20 20 43 Greatest Overweight (x) 1 | . . . 1 1 Average Overweight (x) . | . . . . . Largest Inventory Capacity 15 | 5 10 10 10 15 Average Capacity 12 | 5 9 10 10 13 Most Carried 15 | 5 9 10 10 15 Average Carried 11 | 3 7 9 9 13 Final Capacity 15 | 5 10 10 10 15 Final Carried 15 | 4 9 10 10 15 Class Distribution -------------------- 77% | Mutant 22% | Scavenger-Mutant Dominant Class ---------------- Mutant | -10/Materials Mutant | -10/Mines Mutant | -10/Subcaves Mutant | -8/Scraptown Resources | -11 -10 -10 -10 -8 ----------- Run | Yrd Mat Min Sub Scr Matter Collected 481 | 91 137 131 102 20 Remotely . | . . . . . Salvage Created 257 | . 182 . 75 . Parts 15 | . 10 . 5 . Haulers Intercepted 1 | . 1 . . . Recyclers Shooed . | . . . . . Parts Field Recycled . | . . . . . Retrieved Matter . | . . . . . Parts Self-Destructed 8 | . . . 8 . Prevented . | . . . . . Parts Restored . | . . . . . Kills | -11 -10 -10 -10 -8 ------- Run | Yrd Mat Min Sub Scr Combat Hostiles Destroyed 7 | . 5 . 2 . Guns 6 | . 4 . 2 . Classes Destroyed 4 | . 3 . 1 . Hauler 1 | . 1 . . . Swarmer 3 | . 3 . . . Grunt 2 | . 2 . . . Subdweller 2 | . . . 2 . Best Kill Streak 3 | . 3 . 1 . Combat Bots Only 3 | . 3 . 1 . Max Kills in Single Turn 1 | . 1 . 1 . Gunslinging . | . . . . . Exploded . | . . . . . Melee . | . . . . . Uniques/NPCs Destroyed . | . . . . . Combat | -11 -10 -10 -10 -8 -------- Run | Yrd Mat Min Sub Scr Hostile Shots Fired 67 | . 31 . 11 25 Missed 21 | . 9 . 4 8 Hits 46 | . 22 . 7 17 Projectile 46 | . 22 . 7 17 AOE 2 | . . . 2 . Critical Strikes 2 | . 1 . 1 . Damage Taken 856 | . 230 . 244 382 Core 268 | . 11 . 109 148 Absorbed by Shields . | . . . . . Core Remaining (%) 100 | 100 . . . . Volleys Fired 38 | 3 24 . 9 2 Largest 2 | 2 2 . 2 1 Hottest 100 | 70 100 . 100 . Shots Fired 74 | 6 48 . 18 2 Gun 72 | 6 48 . 18 . Cannon . | . . . . . Launcher . | . . . . . Special 2 | . . . . 2 Kinetic 24 | 3 20 . 1 . Thermal 48 | 3 28 . 17 . Explosive . | . . . . . Electromagnetic . | . . . . . Robot Hit Streak 9 | 3 9 . 7 5 Robot Miss Streak 2 | 1 2 . 2 . Penetration Max . | . . . . . Secondary Targets 1 | . 1 . . . Max Gunslinging Chain 1 | . 1 . . . Shots Hit Robots 53 | 4 33 . 14 2 Core Hits 15 | 1 10 . 4 . Critical Kills . | . . . . . Critical Parts Destroyed . | . . . . . Critical Strikes 4 | . 3 . 1 . Burn 4 | . 3 . 1 . Melee Attacks 12 | . . . 12 . Impact . | . . . . . Slashing 12 | . . . 12 . Piercing . | . . . . . Sneak Attacks . | . . . . . Combat Hostiles . | . . . . . Follow-up Attacks . | . . . . . Damage Inflicted 657 | 49 428 . 180 . Guns 657 | 49 428 . 180 . Cannons . | . . . . . Explosions . | . . . . . Melee . | . . . . . Ramming . | . . . . . Kinetic 180 | 36 127 . 17 . Thermal 477 | 13 301 . 163 . Explosive . | . . . . . Electromagnetic . | . . . . . Impact . | . . . . . Slashing . | . . . . . Piercing . | . . . . . Highest Corruption . | . . . . . Average Corruption . | . . . . . Corruption Purged . | . . . . . Corruption Blocked . | . . . . . Overload Shots . | . . . . . Overflow Damage . | . . . . . Projectiles . | . . . . . Explosions . | . . . . . Melee . | . . . . . Knockbacks . | . . . . . Impact . | . . . . . Kinetic . | . . . . . Secondary . | . . . . . Self-Inflicted Damage . | . . . . . Shots . | . . . . . Rammed . | . . . . . Targets Rammed . | . . . . . Kicked . | . . . . . Crushed . | . . . . . Highest Temperature 198 | 18 198 . . . Average Temperature 71 | 9 77 . . . Received Heat Transfer 141 | . 93 . 36 12 Siege Activations . | . . . . . Martial Activations . | . . . . . Shielding Activations . | . . . . . Robots Disrupted . | . . . . . Combat Hostiles . | . . . . . Robots Corrupted . | . . . . . Combat Hostiles . | . . . . . Parts Fried . | . . . . . Impact Corruptions . | . . . . . Robots Melted 1 | . 1 . . . Combat Hostiles 1 | . 1 . . . Parts Melted 2 | . 1 . 1 . Heat Transferred 1702 | 37 1110 . 555 . Parts Sabotaged . | . . . . . Parts Stolen . | . . . . . Parts Stripped . | . . . . . Power Chain Reactions . | . . . . . Alert | -11 -10 -10 -10 -8 ------- Run | Yrd Mat Min Sub Scr Maximum Alert Level . | . . . . . Low Security (%) 100 | 100 100 100 . . Level 1 . | . . . . . Level 2 . | . . . . . Level 3 . | . . . . . Level 4 . | . . . . . Level 5 . | . . . . . High Security . | . . . . . Max Security . | . . . . . Peak Influence 106 | . 106 27 . . Initial 27 | . . 27 . . Average 29 | . 39 9 . . Influence Increases 174 | . 174 . . . Destroy 0b10 Robot/C 100 | . 100 . . . Destroy 0b10 Robot/NC 5 | . 5 . . . Destroy Leader 32 | . 32 . . . Successful Hack 6 | . 6 . . . Destroy Structure 1 | . 1 . . . Lose Combat Pursuer 30 | . 30 . . . Influence Decreases 174 | . 103 71 . . Entered New Map 44 | . . 44 . . Time Decay 130 | . 103 27 . . Squads Dispatched 1 | . 1 . . . Investigation . | . . . . . Extermination . | . . . . . Reinforcement 1 | . 1 . . . Assault . | . . . . . Garrison . | . . . . . Intercept . | . . . . . Searches Triggered . | . . . . . Construction Impeded . | . . . . . Haulers Reinforced . | . . . . . Active Scanning Responses . | . . . . . Cargo Convoy Interrupts . | . . . . . Stealth | -11 -10 -10 -10 -8 --------- Run | Yrd Mat Min Sub Scr Distress Signals . | . . . . . Communications Jammed . | . . . . . Distress Signals . | . . . . . Times Spotted 22 | . 9 . 5 8 Peak Tracking Total 6 | . 4 . 2 6 Tactical Retreats 2 | . 2 . . . Traps | -11 -10 -10 -10 -8 ------- Run | Yrd Mat Min Sub Scr Traps Triggered . | . . . . . Indirectly . | . . . . . Trap Hack Attempts . | . . . . . Triggered . | . . . . . Disarmed . | . . . . . Reprogrammed . | . . . . . Reused . | . . . . . Traps Extracted . | . . . . . Installed . | . . . . . Triggered . | . . . . . Machines | -11 -10 -10 -10 -8 ---------- Run | Yrd Mat Min Sub Scr Machines Disabled . | . . . . . Max in Single Turn . | . . . . . Machines Repaired . | . . . . . Machines Dismantled . | . . . . . Machines Sabotaged . | . . . . . Overloaded Fab Kills . | . . . . . Hacking | -11 -10 -10 -10 -8 --------- Run | Yrd Mat Min Sub Scr Machines Accessed 8 | . 2 . . 6 Terminals 1 | . 1 . . . Fabricators . | . . . . . Repair Stations 1 | . 1 . . . Recycling Units . | . . . . . Scanalyzers . | . . . . . Garrison Access . | . . . . . Total Hacks 29 | . 2 . . 27 Successful 28 | . 1 . . 27 Failed 1 | . 1 . . . Catastrophic . | . . . . . Database Lockouts . | . . . . . Manual 1 | . 1 . . . Terminals 1 | . 1 . . . Fabricators . | . . . . . Repair Stations 1 | . 1 . . . Recycling Units . | . . . . . Scanalyzers . | . . . . . Garrison Access . | . . . . . Terminal Hacks 27 | . . . . 27 Record 20 | . . . . 20 Robot Analysis 6 | . . . . 6 Proto ID Catalog 1 | . . . . 1 Fabricator Hacks . | . . . . . Repair Station Hacks 1 | . 1 . . . Refit 1 | . 1 . . . Recycling Unit Hacks . | . . . . . Scanalyzer . | . . . . . Garrison Access Hacks . | . . . . . Unauthorized Hacks . | . . . . . Terminals . | . . . . . Fabricators . | . . . . . Repair Stations . | . . . . . Recycling Units . | . . . . . Scanalyzers . | . . . . . Garrison Access . | . . . . . Data Cores Recovered . | . . . . . Used . | . . . . . Hacking Detections . | . . . . . Full Trace Events . | . . . . . Feedback Events . | . . . . . Feedback Blocked . | . . . . . Robot Schematics Acquired . | . . . . . Robots Built . | . . . . . Authchips . | . . . . . Time . | . . . . . Total Robot Build Rating . | . . . . . Part Schematics Acquired . | . . . . . Parts Built . | . . . . . Authchips . | . . . . . Time . | . . . . . Total Part Build Rating . | . . . . . Part Studies Acquired . | . . . . . Parts Repaired . | . . . . . Time . | . . . . . Parts Recycled . | . . . . . Recycled Matter . | . . . . . Retrieved Matter . | . . . . . Retrieved Components . | . . . . . Parts Scanalyzed . | . . . . . Part Schematics Acquired . | . . . . . Parts Damaged . | . . . . . Bothacking | -11 -10 -10 -10 -8 ------------ Run | Yrd Mat Min Sub Scr Used RIF Installer . | . . . . . Robots Hacked . | . . . . . Non-combat . | . . . . . Combat . | . . . . . Robot Hacks Applied . | . . . . . Relay Couplers Released . | . . . . . Fabnet Peak Effective % . | . . . . . Robots Rewired . | . . . . . Allies Hacked . | . . . . . Hacks Repelled . | . . . . . Allies | -11 -10 -10 -10 -8 -------- Run | Yrd Mat Min Sub Scr Total Allies . | . . . . . Largest Group . | . . . . . Highest-Rated Group . | . . . . . Highest-Rated Ally . | . . . . . Total Orders . | . . . . . Ally Attacks . | . . . . . Total Damage . | . . . . . Kills . | . . . . . Allies Corrupted . | . . . . . Allies Melted . | . . . . . Intel | -11 -10 -10 -10 -8 ------- Run | Yrd Mat Min Sub Scr Active Infowar (turns) . | . . . . . Robot Analysis Total 6 | . . . . 6 Derelict Logs Recovered 3 | . . . . 3 Drone Launches . | . . . . . Drone Recoveries . | . . . . . Exploration | -11 -10 -10 -10 -8 ------------- Run | Yrd Mat Min Sub Scr Turns Passed 3288 | 65 369 101 647 2106 Spaces Moved 1981 | 45 220 21 445 1250 Core 14 | 14 . . . . Treads . | . . . . . Legs 1824 | 31 220 21 302 1250 Wheels 143 | . . . 143 . Hover . | . . . . . Flight . | . . . . . Fastest Speed 50 | 50 120 120 110 115 Average Speed 149 | 98 120 120 126 165 Slowest Speed 210 | 120 120 120 210 210 Overloaded Moves . | . . . . . Propulsion Burnouts . | . . . . . Robots Hopped . | . . . . . Potential Cave-ins . | . . . . . Cave-ins Triggered . | . . . . . Exploration Rate (%) 36 | 4 47 9 34 89 Regions Visited 4 Branch Regions 3 Pre-discovered Areas . | . . . . . Known Exits Taken 3 | . 1 1 1 . Unknown Exits Taken 1 | 1 . . . . Scrap Searched 2 | . . . . 2 Spaces Dug . | . . . . . Terrain Destroyed . | . . . . . Melee . | . . . . . Projectile . | . . . . . AOE . | . . . . . Terrain Rammed . | . . . . . Walls Destroyed . | . . . . . Machines Disabled . | . . . . . Actions | -11 -10 -10 -10 -8 --------- Run | Yrd Mat Min Sub Scr Total 2212 | 58 275 97 488 1294 Wait 113 | . 22 76 2 13 Move 1977 | 44 219 20 444 1250 Hop . | . . . . . Pick Up 30 | 6 6 1 4 13 Fast Attach 5 | 3 . . 2 . Attach 4 | 2 1 . . 1 Detach 1 | . . . . 1 Swap 15 | . 3 . 7 5 Drop 17 | . . . 8 9 Fire 38 | 3 24 . 9 2 Melee 12 | . . . 12 . Ram . | . . . . . Kick . | . . . . . Crush . | . . . . . Escape Stasis . | . . . . . Rewire . | . . . . . Trap . | . . . . . Miscellaneous . | . . . . . Route ------- -11/Scrapyard -10/Materials (discovered 3 exits: *Mat x2 / *Min) -10/Mines -10/Subcaves (discovered 2 exits: *Mat / *Scr) -8/Scraptown History --------- Turn | Location | Event 13 | -11/Scrapyard | Discovered new exit (range 15) 66 | -11/Scrapyard | Entered Materials 193 | -10/Materials | Discovered new exit (range 5) 204 | -10/Materials | Identified exit to Materials 302 | -10/Materials | Build established: Mutant 376 | -10/Materials | Discovered exit to Materials (range 3) 392 | -10/Materials | Discovered new exit (range 16) 408 | -10/Materials | Identified exit to Mines 435 | -10/Materials | Entered Mines 465 | -10/Mines | Discovered new exit (range 5) 474 | -10/Mines | Identified exit to Subcaves 479 | -10/Mines | Met a Derelict bent on vengeance 536 | -10/Mines | Entered Subcaves 537 | -10/Subcaves | Approached by a straggling Scientist 846 | -10/Subcaves | Ambushed by Subdwellers from Twisted Machinery 1023 | -10/Subcaves | Shifting Twisted Machinery released Sub. Machine Gun 1036 | -10/Subcaves | Discovered new exit (range 6) 1040 | -10/Subcaves | Identified exit to Materials 1159 | -10/Subcaves | Scientist uncovered a shortcut to Scraptown 1164 | -10/Subcaves | Identified exit to Scraptown 1183 | -10/Subcaves | Entered Scraptown 1378 | -8/Scraptown | Build established: Scavenger-Mutant 1729 | -8/Scraptown | Scanned Subdweller tech in exchange for log data 1736 | -8/Scraptown | Learned Factory emergency access door positions 1738 | -8/Scraptown | Learned Factory security intel 1740 | -8/Scraptown | Learned location of 1 exit from Research 1805 | -8/Scraptown | Visited Supply Room 1874 | -8/Scraptown | Visited Awakened 2140 | -8/Scraptown | Build established: Mutant 2198 | -8/Scraptown | Visited UFD Registry 2231 | -8/Scraptown | Visited Junk Repository 2240 | -8/Scraptown | Visited Junk Repository 2304 | -8/Scraptown | Visited Red Mages 2360 | -8/Scraptown | Visited TADAMA 2380 | -8/Scraptown | Visited Observation Area 2464 | -8/Scraptown | Registered with UFD as "Bulletninja" 2521 | -8/Scraptown | Visited Modified Component R&D 2579 | -8/Scraptown | Visited Science Guys 2650 | -8/Scraptown | Visited Botcube Research 2665 | -8/Scraptown | Found Botcube 2700 | -8/Scraptown | Visited Infowarlord's Domain 2745 | -8/Scraptown | Visited Abandonware Association 2770 | -8/Scraptown | Learned abandonware demo "REPAIR.EXE" 2770 | -8/Scraptown | Learned abandonware demo "MELTYB.EXE" 2821 | -8/Scraptown | Visited Derelict Rescue Squad 2875 | -8/Scraptown | Visited LU-1G1's Boring Crew 3027 | -8/Scraptown | Delivered Scrap Shield to a Scientist 3161 | -8/Scraptown | Visited Analyses Database 3191 | -8/Scraptown | Visited Scrap Suit Storage 3220 | -8/Scraptown | Found Scrap Suit 3281 | -8/Scraptown | Met Optimus 3281 | -8/Scraptown | Accepted into 0bPrime 3281 | -8/Scraptown | Attached CPS modules to Optimus 3282 | -8/Scraptown | Attacked by Scraptown defenders 3283 | -8/Scraptown | Attached CPS modules to Optimus 3286 | -8/Scraptown | Core integrity fell below 50% 3288 | -8/Scraptown | Core integrity fell below 20% 3289 | -8/Scraptown | Destroyed by Optimus with Helical Railgun Last Messages --------------- Even rule under a benevolent dictator is still subject to all the dangers of concentrating too much power in one figure. You know who I mean. Optimus: Oh you must be the new member. When your data popped up in the registry I could tell there was something different about you. Up close you really do look more capable than the average Wanderer to join us. I don't ask this often, and I'll admit we lost the last several members to try, but do you think you could help us out? I can't discuss this particular mission in the open, just read up on our 0bPrime terminal over there. I've temporarily unlocked the 0bP002 entry for you. You'll get the idea. 03281_ CPS modules attach to Optimus. 03282_ ANNOUNCEMENT: Intruder alert! Defend Scraptown! 03282_ Penetrated by Slug. 03283_ Optimus: "My trust in you was sorely misplaced, Bulletninja!" 03283_ CPS Tube expended. 03283_ CPS modules attach to Optimus. 03284_ Penetrated by Slug. 03286_ Carbon-fiber Leg destroyed. Map ----- +----------------------------------------------------+ | ##+# ="#??#""" """"#??????????# #######??? | | "" "#??#" "|""#??????????# # #??? | | [ "#??#""" """"#??????????# # #??? | | " """""#??#"""" ""####"####### # ! #??? | | "#####??#"" #"" """"# # #??? | | """""#??#"" "" " #"" = """# # #??? | | = #??#"" "" "&# " ""# # #??? | | #??# "#" """# # #??? | | #??#" #" # # #??? | | ######## ###??###### ########### ##### ## ####??? | | ???##### ########### ########### ##### ## ####### | | ???#"""" """"""""""" """"""""""" """"" "" "## | | ???#" "## | | ???#" "## "" | | ???#" "## "# | | ???#" "## "# | | ####" "# | | """" """""""""""""""""""""""""""" "## "" | | """" """""""""""""""""""""""""""" "## | | """" ""###### ################"" "## | | """" ""#? #?????????#"" "###### | | """" ""# X"?????????#"" "## " | | """" ""# "" "" ##????????#"" "## " | | """" ""# "" "" X"#??????###"" "## | | """" ""# " " #######E# #"" "## | | ####" "" "" 3 @ j h | | ???#" "" "" % M E h "## | | ####" ""# " " ######### #""r "## " | | ""# "" "" ""???????###"" "## " | | ""# "" "" ##????????#"" "###### | | ""# X"?????????#"" "#????? | | ""# #?????????#"" "#????? | | ""###### ################"" "###### | | """""""""""""""""""""""""""" "## | | """""""""""""""""""""""""""" ### | | "## | | "## | | """ "## | | ??"#" ## | | ???#" # | | ???#"""""" """"""""""" """"""""""" """""" ## ### | | ????###### ########### ########### ###### ## | | ?????????? ????# #???# #?# ###### | | ??????????? ???## ##???# #?# #????? | | ??????????? ???#"! "#???#"" """#?# #????? | | ????????????????#"! !"#???#" ""#?# #????? | | ????????????????#"! "#???#" X " ""#?# #????? | | ????????????????#" !"#???#""""""""#?# ###### | | ????????????????#" !"#???##########?# | | ????????????????## X####??????????????# | +----------------------------------------------------+ Best States ------------- Heat Dissipation 25 Energy Generation 15 Energy Capacity 200 Matter Stores 300 Matter Capacity 300 Sight Range 16 Terrain Scan Density 10 Armor Coverage 80 Evasion (%) 55 Item Schematics ----------------- None Robot Schematics ------------------ None Fabricated ------------ Nothing Repaired ---------- Nothing Studied --------- None Alien Tech Used ----------------- None Achievements -------------- Fitting Room Nice Directions, Buddy Challenges ------------ None Game ------ Seed SmartbombImprinterLog Manual? 0 Play Time 00:33:34 Cumulative 45.8 hours Start 2026.07.28 @ 21:33:35 End 2026.07.28 @ 22:08:51 Sessions 1 Manual Loads 0 Difficulty Rogue Special Mode None Game No. 75 Rogue 75 Adventurer 0 Explorer 0 Win Type - Total 0 Types 0/0/0/0/0/0/0/0/0/0 Lore% 37 Gallery% 35 Achievement% 21 Wizard Run 0 Options --------- Layout 0 ASCII 0 Keyboard 0 Movement Mouse Keybinds 0 Fullscreen 1 Font 18/SmallcapsGlow Map View 76x50 Zoom Use 0% Tactical HUD 1 Map Filters NONE Filters NONE Steam 1 RUN: cc7c3062-4045-463b-abe1-8520c67f574f